fUSD/lending_fUSD_20240426
["ID","MTS","AMOUNT","RATE_DAILY","PERIOD"]
[323636011,1714145494208,-673.82,0.00012916,2]
[323636012,1714145494217,-510.16,0.00012916,2]
[323636013,1714145494226,-500.0,0.00012916,2]
[323636014,1714145494236,-500.0,0.00012916,2]
[323636015,1714145494246,-716.44,0.00012916,2]
[323636016,1714145494255,-544.66,0.00012916,2]
[323636017,1714145494264,-339.45,0.00012916,2]
[323636018,1714145494274,-746.73,0.00012916,2]
[323636019,1714145494283,-539.24,0.00012916,2]
[323636020,1714145494294,-500.0,0.00012916,2]
[323636021,1714145494303,-500.0,0.00012916,2]
[323636022,1714145494316,-500.0,0.00012916,2]
[323636023,1714145494325,-500.0,0.00012916,2]
[323636024,1714145494335,-934.35,0.00012916,2]
[323636025,1714145494345,-1569.46,0.00012916,2]
[323636026,1714145494354,-559.58,0.00012916,2]
[323636027,1714145494363,-1558.28,0.00012916,2]
[323636028,1714145494372,-641.06,0.00012916,2]
[323636029,1714145494381,-500.0,0.00012916,2]
[323636030,1714145494391,-1331.33,0.00012916,2]
[323636031,1714145494400,-500.0,0.00012916,2]
[323636032,1714145494411,-3786.48,0.00012916,2]
[323636033,1714145494421,-500.0,0.00012916,2]
[323636034,1714145494431,-4582.64,0.00012916,2]
[323636035,1714145494440,-500.0,0.00012916,2]
[323636036,1714145494450,-1343.38,0.00012916,2]
[323636037,1714145494459,-2248.4,0.00012916,2]
[323636038,1714145494666,-9950.43,0.00012916,2]
[323636039,1714145494676,-324.83,0.00012916,2]
[323636040,1714145494685,-605.98,0.00012916,2]
[323636041,1714145494694,-500.0,0.00012916,2]
[323636042,1714145494703,-501.16,0.00012916,2]
[323636043,1714145494713,-698.68,0.00012918,2]
[323636044,1714145494722,-500.0,0.00012918,2]
[323636045,1714145494732,-500.0,0.00012918,2]
[323636046,1714145494741,-500.0,0.00012918,2]
[323636047,1714145494750,-500.0,0.00012918,2]
[323636048,1714145494759,-500.0,0.00012918,2]
[323636049,1714145494769,-500.0,0.00012918,2]
[323636050,1714145494778,-500.0,0.00012918,2]
[323636051,1714145494787,-293.92,0.00012918,2]
[323636052,1714145494797,-946.71,0.00012918,2]
[323636053,1714145494806,-712.61,0.00012918,2]
[323636054,1714145494818,-500.0,0.00012918,2]
[323636055,1714145494827,-1437.61,0.00012918,2]
[323636056,1714145494837,-500.0,0.00012918,2]
[323636057,1714145494846,-500.0,0.00012918,2]
[323636058,1714145494856,-500.0,0.00012918,2]
[323636059,1714145494866,-544.27,0.00012918,2]
[323636060,1714145494875,-839.62,0.00012918,2]
[323636061,1714145494884,-844.84,0.00012918,2]
[323636062,1714145494894,-500.0,0.00012918,2]
[323636063,1714145494903,-571.21,0.00012918,2]
[323636064,1714145494912,-698.56,0.00012918,2]
[323636065,1714145494921,-500.0,0.00012918,2]
[323636066,1714145494931,-500.0,0.00012918,2]
[323636067,1714145494941,-508.46,0.00012918,2]
[323636068,1714145494950,-884.98,0.00012918,2]
[323636069,1714145494959,-1413.25,0.00012918,2]
[323636070,1714145494969,-500.0,0.00012918,2]
[323636071,1714145494978,-500.0,0.00012918,2]
[323636072,1714145494988,-500.0,0.00012918,2]
[323636073,1714145494997,-500.0,0.00012918,2]
[323636074,1714145495007,-500.0,0.00012918,2]
[323636075,1714145495016,-1640.01,0.00012918,2]
[323636076,1714145495026,-500.0,0.00012918,2]
[323636077,1714145495036,-820.92,0.00012918,2]
[323636078,1714145495046,-1253.08,0.00012918,2]
[323636079,1714145495056,-882.15,0.00012918,2]
[323636080,1714145495074,-738.06,0.00012918,2]
[323636081,1714145495084,-2238.5,0.00012918,2]
[323636082,1714145495095,-2085.13,0.00012918,2]
[323636083,1714145495104,-503.80336887,0.00012918,2]
[323636084,1714145495114,-500.0,0.00012918,2]
[323636085,1714145495124,-500.0,0.00012918,2]
[323636086,1714145495134,-2408.59,0.00012918,2]
[323636087,1714145495145,-500.0,0.00012918,2]
[323636088,1714145495157,-3335.45,0.00012918,2]
[323636089,1714145495167,-678.9,0.00012918,2]
[323636090,1714145495177,-500.0,0.00012918,2]
[323636091,1714145495187,-500.0,0.00012918,2]
[323636092,1714145495197,-500.0,0.00012918,2]
[323636093,1714145495207,-648.54,0.00012918,2]
[323636094,1714145495217,-500.0,0.00012918,2]
[323636095,1714145495227,-500.0,0.00012918,2]
[323636096,1714145495237,-500.0,0.00012918,2]
[323636097,1714145495248,-500.0,0.00012918,2]
[323636098,1714145495258,-959.75,0.00012918,2]
[323636099,1714145495268,-500.0,0.00012935,2]
[323636100,1714145495278,-645.24,0.00012935,2]
[323636101,1714145495288,-613.01586214,0.00012935,2]
[323636102,1714145495297,-581.49,0.00012935,2]
[323636103,1714145495308,-518.66,0.00012935,2]
[323636104,1714145495323,-500.0,0.00012935,2]
[323636105,1714145495333,-500.0,0.00012935,2]
[323636106,1714145495344,-697.35,0.00012935,2]
[323636107,1714145495353,-798.33,0.00012935,2]
[323636108,1714145495363,-500.0,0.00012935,2]
[323636109,1714145495373,-500.0,0.00012935,2]
[323636110,1714145495382,-566.97,0.00012935,2]
[323636111,1714145495392,-531.09,0.00012935,2]
[323636112,1714145495401,-676.2,0.00012935,2]
[323636113,1714145495411,-381.29587062,0.00012935,2]
[323636114,1714145495421,-781.48,0.00012935,2]
[323636115,1714145495431,-500.0,0.00012935,2]
[323636116,1714145495440,-500.0,0.00012935,2]
[323636117,1714145495450,-530.74,0.00012935,2]
[323636118,1714145495459,-500.0,0.00012935,2]
[323636119,1714145495469,-512.12783245,0.00012935,2]
[323636120,1714145495479,-500.0,0.00012935,2]
[323636121,1714145495489,-500.0,0.00012935,2]
[323636122,1714145495498,-500.0,0.00012935,2]
[323636123,1714145495508,-550.64,0.00012935,2]
[323636124,1714145495517,-500.0,0.00012935,2]
[323636125,1714145495527,-500.0,0.00012935,2]
[323636126,1714145495537,-500.0,0.00012935,2]
[323636127,1714145495547,-500.0,0.00012935,2]
[323636128,1714145495557,-500.0,0.00012935,2]
[323636129,1714145495569,-500.0,0.00012935,2]
[323636130,1714145495578,-702.05,0.00012935,2]
[323636131,1714145495587,-500.0,0.00012935,2]
[323636132,1714145495596,-500.0,0.00012935,2]
[323636133,1714145495605,-500.0,0.00012935,2]
[323636134,1714145495616,-500.0,0.00012935,2]
[323636135,1714145495625,-836.12,0.00012935,2]
[323636136,1714145495636,-500.0,0.00012935,2]
[323636137,1714145495645,-500.0,0.00012935,2]
[323636138,1714145495654,-861.98,0.00012935,2]
[323636139,1714145495664,-763.82,0.00012935,2]
[323636140,1714145495673,-500.0,0.00012935,2]
[323636141,1714145495683,-570.59,0.00012935,2]
[323636142,1714145495693,-500.0,0.00012935,2]
[323636143,1714145495703,-500.0,0.00012935,2]
[323636144,1714145495713,-639.18813922,0.00012935,2]
[323636145,1714145495723,-500.0,0.00012935,2]
[323636146,1714145495733,-500.0,0.00012935,2]
[323636147,1714145495743,-500.0,0.00012935,2]
[323636148,1714145495752,-500.0,0.00012935,2]
[323636149,1714145495762,-500.0,0.00012935,2]
[323636150,1714145495772,-571.54,0.00012935,2]
[323636151,1714145495781,-500.0,0.00012935,2]
[323636152,1714145495792,-500.0,0.00012935,2]
[323636153,1714145495801,-500.0,0.00012935,2]
[323636154,1714145495811,-900.74,0.00012935,2]
[323636155,1714145495822,-500.0,0.00012935,2]
[323636156,1714145495832,-500.0,0.00012935,2]
[323636157,1714145495842,-500.0,0.00012935,2]
[323636158,1714145495851,-500.0,0.00012935,2]
[323636159,1714145495861,-500.0,0.00012935,2]
[323636160,1714145495871,-500.0,0.00012935,2]
[323636161,1714145495881,-500.0,0.00012935,2]
[323636162,1714145495891,-960.89,0.00012935,2]
[323636163,1714145495902,-554.19,0.00012935,2]
[323636164,1714145495912,-500.0,0.00012935,2]
[323636165,1714145495922,-500.0,0.00012935,2]
[323636166,1714145495932,-588.51,0.00012935,2]
[323636167,1714145495941,-500.0,0.00012935,2]
[323636168,1714145495951,-237.7,0.00012938,2]
[323636169,1714145495961,-150.0,0.0001295,2]
[323636170,1714145495970,-9374.0,0.00012986,2]
[323636171,1714145495980,-250000.0,0.0001299,2]
[323636172,1714145495989,-6384.3523495,0.0001299,2]
[323636173,1714145495999,-5155.3032552,0.0001299,2]
[323636174,1714145496009,-3926.2541609,0.0001299,2]
[323636175,1714145496019,-2697.2050667,0.0001299,2]
[323636176,1714145496028,-1468.1559724,0.0001299,2]
[323636177,1714145496039,-239.1068781,0.0001299,2]
[323636178,1714145496048,-55637.6403395,0.0001299,2]
[323636179,1714145496058,-44926.8606514,0.0001299,2]
[323636180,1714145496074,-34216.0809632,0.0001299,2]
[323636181,1714145496083,-23505.3012751,0.0001299,2]
[323636182,1714145496093,-12794.5215869,0.0001299,2]
[323636183,1714145496103,-2083.7418988,0.0001299,2]
[323636184,1714145496114,-836.6749479,0.0001299,2]
[323636185,1714145496124,-836.6749479,0.0001299,2]
[323636186,1714145496133,-836.6749479,0.0001299,2]
[323636187,1714145496143,-836.6749479,0.0001299,2]
[323636188,1714145496154,-836.6749479,0.0001299,2]
[323636189,1714145496163,-836.6749479,0.0001299,2]
[323636190,1714145496173,-264.18830746,0.00012999,2]
[323636191,1714145496183,-12210.81189863,0.00012999,2]
[323636192,1714145496193,-1358235.67666737,0.00013,2]
[323636193,1714145496203,-1318393.58894445,0.00013,2]
[323636194,1714145496212,-731882.8304621,0.00013,2]
[323636195,1714145496221,-4128186.16439894,0.00013,2]
[323636196,1714145496231,-267435.45791486,0.00013,2]
[323636197,1714145496241,-500.0,0.00013,2]
[323636198,1714145496250,-532974.54962302,0.00013,2]
[323636199,1714145496260,-280809.07932986,0.00013,2]
[323636200,1714145496270,-4163963.81829065,0.00013,2]
[323636201,1714145496280,-882250.29813122,0.00013,2]
[323636202,1714145496290,-2728706.50313068,0.00013,2]
[323636203,1714145496299,-255131.6359883,0.00013,2]
[323636204,1714145496309,-2247836.26305115,0.00013,2]
[323636205,1714145497527,-3940.96340745,0.00013,2]
[323636206,1714145497540,-2027.32999999,0.00013,2]
[323636207,1714145497575,-325.94476,0.00011544,2]
[323636208,1714145498324,-1553.0998,0.00011444,2]
[323636209,1714145498336,-5579.8636,0.00011444,2]
[323636210,1714145498346,-298.5520058,0.00011543,2]
[323636211,1714145498358,-201.4479942,0.00011543,2]
[323636212,1714145498367,-206.77986672,0.00011543,2]
[323636213,1714145498377,-325.7152054,0.00011543,2]
[323636214,1714145498386,-155.2174762,0.00011543,2]
[323636215,1714145498395,-155.0,0.00011543,2]
[323636216,1714145498406,-174.05524,0.00011544,2]
[323636217,1714145498415,-500.0,0.00011544,2]
[323636218,1714145498425,-266.3316856,0.00011544,2]
[323636219,1714145498471,-233.6683144,0.00011544,2]
[323636220,1714145498481,-500.0,0.00011565,2]
[323636221,1714145498491,-500.0,0.00011817,2]
[323636222,1714145498501,-437.55,0.00011818,2]
[323636223,1714145498511,-500.0,0.00011818,2]
[323636224,1714145498521,-500.0,0.00012092,2]
[323636225,1714145498531,-500.0,0.00012117,2]
[323636226,1714145498540,-500.0,0.00012365,2]
[323636227,1714145498549,-500.0,0.00012366,2]
[323636228,1714145498558,-500.0,0.00012639,2]
[323636229,1714145498568,-500.0,0.0001264,2]
[323636230,1714145498577,-500.0,0.00012913,2]
[323636231,1714145498587,-10110.8816856,0.00013,2]
[323636232,1714145498599,-43880.35970096,0.00013,2]
[323636233,1714145498627,-500.0,0.00011544,2]
[323636234,1714145498637,-151.31,0.00013,2]
[323636235,1714145498649,-653.26712331,0.00013,2]
[323636236,1714145498662,-7446.6,0.00013,2]
[323636237,1714145499383,-1681.97,0.00011465,2]
[323636238,1714145499396,-5025.66287497,0.00011465,2]
[323636239,1714145499408,-2279.91402884,0.00011465,2]
[323636240,1714145499430,-814.91801878,0.00011465,2]
[323636241,1714145499463,-197.53507741,0.00011465,2]
[323636242,1714145499473,-684.19475722,0.00011542,2]
[323636243,1714145499483,-500.0,0.00011543,2]
[323636244,1714145499493,-500.0,0.00011544,2]
[323636245,1714145499502,-260.44016537,0.00011544,2]
[323636246,1714145499530,-392.46472466,0.00011542,2]
[323636247,1714145499540,-239.55983463,0.00011544,2]
[323636248,1714145499549,-27.7858439,0.00011544,2]
[323636249,1714145499569,-472.2141561,0.00011544,2]
[323636250,1714145499579,-177.2058439,0.00011648,2]
[323636251,1714145499591,-322.7941561,0.00011648,2]
[323636252,1714145499601,-21.51201497,0.00011649,2]
[323636253,1714145499612,-478.48798503,0.00011649,2]
[323636254,1714145499621,-355.55794215,0.00011817,2]
[323636255,1714145611436,-1581.49,0.0001337,10]
[323636256,1714145611634,-152.0,0.00014481,10]
[323636257,1714145611673,-152.0,0.00014646,11]
[323636258,1714145611707,-152.0,0.00014812,12]
[323636259,1714145611751,-152.0,0.00014978,13]
[323636260,1714145611779,-317.65578739,0.00015,15]
[323636261,1714145611813,-152.0,0.00015143,14]
[323636262,1714145611846,-152.0,0.00015309,15]
[323636263,1714145611881,-152.0,0.00015475,16]
[323636264,1714145611912,-152.0,0.0001564,17]
[323636265,1714145611951,-152.0,0.00015806,18]
[323636266,1714145611986,-152.0,0.00015972,19]
[323636267,1714145612017,-152.0,0.00016137,20]
[323636268,1714145612051,-152.0,0.00016303,21]
[323636269,1714145612079,-152.0,0.00016469,22]
[323636270,1714145612120,-152.0,0.00016634,23]
[323636271,1714145612153,-152.0,0.000168,24]
[323636272,1714145612232,-1581.49,0.00017853,10]
[323636273,1714145612262,-150.0,0.00018,20]
[323636274,1714145612294,-3027.40008447,0.000191,11]
[323636275,1714145612328,-270.0,0.0001957,15]
[323636276,1714145612351,-270.0,0.0001957,15]
[323636277,1714145612376,-376.0,0.0001957,15]
[323636278,1714145612399,-150.5,0.0001957,15]
[323636279,1714145612425,-376.0,0.0001957,15]
[323636280,1714145612450,-150.5,0.0001957,15]
[323636281,1714145612476,-270.0,0.0001958,15]
[323636282,1714145612500,-270.0,0.0001958,15]
[323636283,1714145612526,-270.0,0.0001958,15]
[323636284,1714145612552,-376.0,0.0001958,15]
[323636285,1714145612578,-150.5,0.0001958,15]
[323636286,1714145612601,-376.0,0.0001958,15]
[323636287,1714145612627,-150.5,0.0001958,15]
[323636288,1714145612651,-376.0,0.0001958,15]
[323636289,1714145612677,-150.5,0.0001958,15]
[323636290,1714145612704,-152.64,0.0001959,15]
[323636291,1714145612732,-270.0,0.0001959,15]
[323636292,1714145612758,-270.0,0.0001959,15]
[323636293,1714145612782,-270.0,0.0001959,15]
[323636294,1714145612807,-376.0,0.0001959,15]
[323636295,1714145612833,-150.5,0.0001959,15]
[323636296,1714145612858,-376.0,0.0001959,15]
[323636297,1714145612883,-150.5,0.0001959,15]
[323636298,1714145613166,-376.0,0.0001959,15]
[323636299,1714145613194,-150.5,0.0001959,15]
[323636300,1714145613219,-154.84,0.0001959,15]
[323636301,1714145613251,-202.84551372,0.0002,30]
[323636302,1714145613283,-383.28,0.0002088,15]
[323636303,1714145613308,-277.37,0.0002088,15]
[323636304,1714145613331,-376.0,0.0002089,15]
[323636305,1714145613354,-265.41,0.0002089,15]
[323636306,1714145613378,-270.0,0.0002089,15]
[323636307,1714145613411,-151.0,0.00021644,30]
[323636308,1714145613438,-500.0,0.00021889,10]
[323636309,1714145613472,-201.098608,0.00022,20]
[323636310,1714145613496,-150.0,0.00022,20]
[323636311,1714145613522,-150.0,0.00022,20]
[323636312,1714145613548,-1000.0,0.00022,10]
[323636313,1714145613575,-1000.0,0.00022,10]
[323636314,1714145613599,-1000.0,0.00022,10]
[323636315,1714145613625,-1000.0,0.00022,10]
[323636316,1714145613648,-1000.0,0.00022,10]
[323636317,1714145613675,-1000.0,0.00022,10]
[323636318,1714145613701,-1000.0,0.00022,10]
[323636319,1714145613725,-1000.0,0.00022,10]
[323636320,1714145613781,-1000.0,0.00022,10]
[323636321,1714145613904,-1000.0,0.00022,10]
[323636322,1714145613934,-1000.0,0.00022,10]
[323636323,1714145613957,-1000.0,0.00022,10]
[323636324,1714145613979,-1000.0,0.00022,10]
[323636325,1714145614001,-1000.0,0.00022,10]
[323636326,1714145614024,-1000.0,0.00022,10]
[323636327,1714145614046,-1000.0,0.00022,10]
[323636328,1714145614068,-1000.0,0.00022,10]
[323636329,1714145614094,-1000.0,0.00022,10]
[323636330,1714145614119,-1000.0,0.00022,10]
[323636331,1714145614146,-1000.0,0.00022,10]
[323636332,1714145614171,-1000.0,0.00022,10]
[323636333,1714145614201,-1000.0,0.00022,10]
[323636334,1714145614225,-1000.0,0.00022,10]
[323636335,1714145614248,-1000.0,0.00022,10]
[323636336,1714145614272,-1000.0,0.00022,10]
[323636337,1714145614296,-1000.0,0.00022,10]
[323636338,1714145614319,-1000.0,0.00022,10]
[323636339,1714145614341,-1000.0,0.00022,10]
[323636340,1714145614363,-1000.0,0.00022,10]
[323636341,1714145614387,-1000.0,0.00022,10]
[323636342,1714145614409,-657.73006734,0.00022,10]
[323636343,1714145614438,-1581.49,0.00022336,10]
[323636344,1714145614463,-1252.90856755,0.000225,15]
[323636345,1714145614489,-320.0,0.00023,10]
[323636346,1714145614513,-368.2204485,0.00023,24]
[323636347,1714145614543,-600.0,0.00024,25]
[323636348,1714145614568,-1099.99999483,0.00024324,11]
[323636349,1714145614598,-1400.81572574,0.00025,30]
[323636350,1714145614620,-250.0,0.00025,30]
[323636351,1714145614642,-250.0,0.00025,30]
[323636352,1714145614663,-166.25418618,0.00025,30]
[323636353,1714145614691,-600.0,0.00025,26]
[323636354,1714145614714,-343.58639574,0.00025,30]
[323636355,1714145614740,-2000.0,0.00025068,120]
[323636356,1714145614763,-200.0,0.000251,10]
[323636357,1714145614787,-328.0,0.0002512,120]
[323636358,1714145614810,-2000.0,0.0002515,120]
[323636359,1714145614833,-2000.0,0.000252,120]
[323636360,1714145614856,-1044.25,0.00025205,120]
[323636361,1714145614910,-1200.0,0.00026,27]
[323636362,1714145614936,-1581.49,0.00026819,10]
[323636363,1714145614961,-1200.0,0.00027,28]
[323636364,1714145614983,-323.2629926,0.00027,120]
[323636365,1714145615008,-1208.0,0.00027086,30]
[323636366,1714145615030,-360.50861885,0.00027219,30]
[323636367,1714145615053,-426.83444315,0.0002739,20]
[323636368,1714145615077,-213.41722157,0.0002739,25]
[323636369,1714145615101,-213.41722157,0.0002739,30]
[323636370,1714145615129,-1014.12,0.00027397,30]
[323636371,1714145615153,-1014.12,0.00027397,30]
[323636372,1714145615178,-1014.12,0.00027397,30]
[323636373,1714145615202,-1014.12,0.00027397,30]
[323636374,1714145615226,-1014.12,0.00027397,30]
[323636375,1714145615249,-1014.12,0.00027397,30]
[323636376,1714145615272,-1014.12,0.00027397,30]
[323636377,1714145615296,-1014.12,0.00027397,30]
[323636378,1714145615319,-1014.12,0.00027397,30]
[323636379,1714145615342,-1014.12,0.00027397,30]
[323636380,1714145615366,-1014.12,0.00027397,30]
[323636381,1714145615390,-1014.12,0.00027397,30]
[323636382,1714145615414,-1014.12,0.00027397,30]
[323636383,1714145615442,-1014.12,0.00027397,30]
[323636384,1714145615467,-1014.12,0.00027397,30]
[323636385,1714145615492,-1014.12,0.00027397,30]
[323636386,1714145615518,-1014.12,0.00027397,30]
[323636387,1714145615545,-1014.12,0.00027397,30]
[323636388,1714145615571,-1014.12,0.00027397,30]
[323636389,1714145615595,-1014.12,0.00027397,30]
[323636390,1714145615619,-1014.12,0.00027397,30]
[323636391,1714145615644,-1014.12,0.00027397,30]
[323636392,1714145615667,-1014.12,0.00027397,30]
[323636393,1714145615699,-1014.27069258,0.00027397,30]
[323636394,1714145615724,-200.0,0.00027397,21]
[323636395,1714145615748,-28655.85425109,0.00027972,90]
[323636396,1714145615774,-1200.0,0.00028,29]
[323636397,1714145616826,-400.88,0.00028,10]
[323636398,1714145616853,-3846.82170329,0.00028,10]
[323636399,1714145616882,-6088.07875288,0.00028208,120]
[323636400,1714145616909,-152.10865362,0.00028308,120]
[323636401,1714145616940,-1200.0,0.00029,30]
[323636402,1714145616967,-155.12022295,0.00029,120]
[323636403,1714145617494,-50000.0,0.00029266,10]
[323636404,1714145617520,-1589.066566,0.0002978,10]
[323636405,1714145617545,-1000.0,0.000298,10]
[323636406,1714145617570,-1000.0,0.0002982,10]
[323636407,1714145617594,-1000.0,0.0002984,10]
[323636408,1714145617618,-1000.0,0.0002986,10]
[323636409,1714145617642,-1000.0,0.0002988,10]
[323636410,1714145617666,-209789.98748632,0.000299,15]
[323636411,1714145617693,-1214510.22335877,0.000299,15]
[323636412,1714145617718,-237025.68962207,0.000299,15]
[323636413,1714145617742,-1000.0,0.000299,10]
[323636414,1714145617768,-1000.0,0.0002992,10]
[323636415,1714145617794,-1000.0,0.0002994,10]
[323636416,1714145617820,-1000.0,0.0002996,10]
[323636417,1714145617845,-1000.0,0.0002998,10]
[323636418,1714145617871,-50000.0,0.0003,10]
[323636419,1714145617897,-2000.0,0.0003,15]
[323636420,1714145617922,-1200.0,0.0003,31]
[323636421,1714145617952,-2000.0,0.0003,14]
[323636422,1714145617977,-1300.0,0.0003,20]
[323636423,1714145618004,-246.8655778,0.0003,30]
[323636424,1714145618028,-1000.0,0.0003,120]
[323636425,1714145618053,-153.30956603,0.0003,120]
[323636426,1714145618077,-183.75981601,0.0003,120]
[323636427,1714145618102,-1201.50683321,0.0003,10]
[323636428,1714145618127,-313.625987,0.0003,120]
[323636429,1714145618151,-1079513.36503318,0.0003,12]
[323636430,1714145623362,-576923.52496682,0.0003,12]
[323636431,1714145623386,-68798.53,0.0003,10]
[323636432,1714145623409,-1000.0,0.0003,11]
[323636433,1714145623434,-524.18628819,0.00030344,10]
[323636434,1714145623456,-250.0,0.000308,30]
[323636435,1714145623480,-636.45826758,0.0003095,30]
[323636436,1714145623505,-50000.0,0.00031,11]
[323636437,1714145623527,-1200.0,0.00031,32]
[323636438,1714145623550,-164.24152885,0.00031,120]
[323636439,1714145623572,-950.0,0.00031,31]
[323636440,1714145623596,-1581.49,0.00031303,10]
[323636441,1714145623618,-2916.0,0.00031534,120]
[323636442,1714145623641,-1816.64,0.0003178,11]
[323636443,1714145623666,-50000.0,0.00032,12]
[323636444,1714145623689,-1200.0,0.00032,33]
[323636445,1714145623711,-1000.0,0.00032,120]
[323636446,1714145623733,-2019.95,0.00032,32]
[323636447,1714145623757,-857.05842926,0.00032,120]
[323636448,1714145623781,-846.75487815,0.00032492,30]
[323636449,1714145623804,-1400.0,0.00032654,30]
[323636450,1714145623830,-1816.64,0.00032876,13]
[323636451,1714145623856,-50000.0,0.00033,13]
[323636452,1714145623879,-556.51429023,0.00033,120]
[323636453,1714145623901,-157.39327751,0.00033,120]
[323636454,1714145623923,-628.0,0.00033,18]
[323636455,1714145623948,-46329.0,0.00033,30]
[323636456,1714145623969,-100000.0,0.00033,30]
[323636457,1714145623993,-6432.3612,0.0003308,120]
[323636458,1714145624019,-2916.0,0.00033389,120]
[323636459,1714145624046,-500.0,0.00033725,10]
[323636460,1714145624069,-500.0,0.00033725,10]
[323636461,1714145624094,-500.0,0.00033725,10]
[323636462,1714145624121,-500.0,0.00033725,10]
[323636463,1714145624144,-500.0,0.00033725,10]
[323636464,1714145624169,-500.0,0.00033725,10]
[323636465,1714145624196,-500.0,0.00033725,10]
[323636466,1714145624219,-500.0,0.00033725,10]
[323636467,1714145624501,-500.0,0.00033725,10]
[323636468,1714145624528,-500.0,0.00033725,10]
[323636469,1714145624551,-500.0,0.00033725,10]
[323636470,1714145624574,-500.0,0.00033725,10]
[323636471,1714145624597,-500.0,0.00033725,10]
[323636472,1714145624619,-500.0,0.00033725,10]
[323636473,1714145624642,-500.0,0.00033725,10]
[323636474,1714145624664,-500.0,0.00033725,10]
[323636475,1714145624690,-500.0,0.00033725,10]
[323636476,1714145624713,-500.0,0.00033725,10]
[323636477,1714145624736,-500.0,0.00033725,10]
[323636478,1714145624760,-500.0,0.00033725,10]
[323636479,1714145624802,-500.0,0.00033725,10]
[323636480,1714145624847,-500.0,0.00033725,10]
[323636481,1714145624898,-500.0,0.00033725,10]
[323636482,1714145624982,-500.0,0.00033725,10]
[323636483,1714145625005,-500.0,0.00033725,10]
[323636484,1714145625027,-500.0,0.00033725,10]
[323636485,1714145625050,-500.0,0.00033725,10]
[323636486,1714145625072,-500.0,0.00033725,10]
[323636487,1714145625095,-500.0,0.00033725,10]
[323636488,1714145625119,-500.0,0.00033725,10]
[323636489,1714145625141,-500.0,0.00033725,10]
[323636490,1714145625165,-500.0,0.00033725,10]
[323636491,1714145625191,-500.0,0.00033725,10]
[323636492,1714145625220,-500.0,0.00033725,10]
[323636493,1714145625245,-500.0,0.00033725,10]
[323636494,1714145625267,-500.0,0.00033725,10]
[323636495,1714145625290,-500.0,0.00033725,10]
[323636496,1714145625313,-500.0,0.00033725,10]
[323636497,1714145625336,-500.0,0.00033725,10]
[323636498,1714145625358,-500.0,0.00033725,10]
[323636499,1714145625381,-500.0,0.00033725,10]
[323636500,1714145625403,-500.0,0.00033725,10]
[323636501,1714145625426,-500.0,0.00033725,10]
[323636502,1714145625453,-500.0,0.00033725,10]
[323636503,1714145625474,-500.0,0.00033725,10]
[323636504,1714145625497,-500.0,0.00033725,10]
[323636505,1714145625519,-500.0,0.00033725,10]
[323636506,1714145625540,-500.0,0.00033725,10]
[323636507,1714145625562,-500.0,0.00033725,10]
[323636508,1714145625584,-500.0,0.00033725,10]
[323636509,1714145625607,-500.0,0.00033725,10]
[323636510,1714145625630,-500.0,0.00033725,10]